[Event "November 21 Early 2023"]
[Site "https://www.chess.com"]
[Date "2023.11.21"]
[Round "10"]
[White "reevecanada"]
[Black "ATM622"]
[Result "1/2-1/2"]
[Board "97"]
[TimeControl "180+1"]
[WhiteElo "2671"]
[BlackElo "2437"]
[WhiteClock "0:00:18"]
[BlackClock "0:00:09"]

1. e4 {[%clk 0:02:50]}  c6 {[%clk 0:02:59]} 2. c4 {[%clk 0:02:46]}  d5 {[%clk 0:03:00]} 3. cxd5 {[%clk 0:02:46]}  cxd5 {[%clk 0:03:01]} 4. exd5 {[%clk 0:02:45]}  Nf6 {[%clk 0:03:01]} 5. Nc3 {[%clk 0:02:44]}  Nxd5 {[%clk 0:02:59]} 6. Nf3 {[%clk 0:02:45]}  Nc6 {[%clk 0:02:59]} 7. Qb3 {[%clk 0:02:44]}  e6 {[%clk 0:02:58]} 8. d4 {[%clk 0:02:43]}  Bb4 {[%clk 0:02:56]} 9. Bd3 {[%clk 0:02:39]}  h6 {[%clk 0:02:44]} 10. O-O {[%clk 0:02:35]}  O-O {[%clk 0:02:38]} 11. a3 {[%clk 0:02:33]}  Be7 {[%clk 0:02:36]} 12. Qc2 {[%clk 0:02:30]}  a6 {[%clk 0:02:33]} 13. Be3 {[%clk 0:02:25]}  Nxe3 {[%clk 0:02:24]} 14. fxe3 {[%clk 0:02:22]}  f5 {[%clk 0:02:20]} 15. Bc4 {[%clk 0:02:18]}  b5 {[%clk 0:02:13]} 16. Ba2 {[%clk 0:02:14]}  b4 {[%clk 0:02:09]} 17. Na4 {[%clk 0:02:12]}  Na5 {[%clk 0:02:06]} 18. Nc5 {[%clk 0:02:09]}  Bxc5 {[%clk 0:02:02]} 19. dxc5 {[%clk 0:02:06]}  bxa3 {[%clk 0:01:59]} 20. bxa3 {[%clk 0:02:05]}  Qc7 {[%clk 0:01:57]} 21. Qc3 {[%clk 0:02:03]}  Rb8 {[%clk 0:01:49]} 22. Nd4 {[%clk 0:01:59]}  Kh8 {[%clk 0:01:47]} 23. Bxe6 {[%clk 0:01:56]}  Nc6 {[%clk 0:01:42]} 24. Bxc8 {[%clk 0:01:54]}  Qxc8 {[%clk 0:01:38]} 25. Rab1 {[%clk 0:01:49]}  Ne5 {[%clk 0:01:37]} 26. c6 {[%clk 0:01:47]}  Ng4 {[%clk 0:01:29]} 27. h3 {[%clk 0:01:42]}  Nf6 {[%clk 0:01:27]} 28. Rxb8 {[%clk 0:01:39]}  Qxb8 {[%clk 0:01:27]} 29. Rxf5 {[%clk 0:01:39]}  Qc8 {[%clk 0:01:23]} 30. Qc2 {[%clk 0:01:35]}  Rf7 {[%clk 0:01:20]} 31. Re5 {[%clk 0:01:33]}  Rc7 {[%clk 0:01:18]} 32. Qc5 {[%clk 0:01:30]}  Qg8 {[%clk 0:01:14]} 33. Re7 {[%clk 0:01:30]}  Qf8 {[%clk 0:01:12]} 34. Nf5 {[%clk 0:01:23]}  Ng8 {[%clk 0:01:11]} 35. Qd6 {[%clk 0:01:04]}  Rxe7 {[%clk 0:01:08]} 36. Nxe7 {[%clk 0:01:01]}  Qxe7 {[%clk 0:01:07]} 37. Qd3 {[%clk 0:00:56]}  Qc7 {[%clk 0:01:05]} 38. Qd7 {[%clk 0:00:56]}  Qe5 {[%clk 0:00:57]} 39. c7 {[%clk 0:00:37]}  Qxe3+ {[%clk 0:00:57]} 40. Kf1 {[%clk 0:00:36]}  Qc1+ {[%clk 0:00:53]} 41. Ke2 {[%clk 0:00:36]}  Qc2+ {[%clk 0:00:53]} 42. Ke3 {[%clk 0:00:30]}  Qc3+ {[%clk 0:00:53]} 43. Kf4 {[%clk 0:00:30]}  Qc4+ {[%clk 0:00:48]} 44. Kf5 {[%clk 0:00:29]}  Qc5+ {[%clk 0:00:46]} 45. Ke6 {[%clk 0:00:28]}  Qe3+ {[%clk 0:00:36]} 46. Kf7 {[%clk 0:00:26]}  Qf4+ {[%clk 0:00:20]} 47. Ke6 {[%clk 0:00:25]}  Qf6+ {[%clk 0:00:19]} 48. Kd5 {[%clk 0:00:25]}  Ne7+ {[%clk 0:00:19]} 49. Qxe7 {[%clk 0:00:24]}  Qxe7 {[%clk 0:00:18]} 50. c8=Q+ {[%clk 0:00:24]}  Kh7 {[%clk 0:00:19]} 51. Qxa6 {[%clk 0:00:25]}  Qd7+ {[%clk 0:00:14]} 52. Qd6 {[%clk 0:00:24]}  Qb7+ {[%clk 0:00:13]} 53. Kc4 {[%clk 0:00:19]}  Qxg2 {[%clk 0:00:12]} 54. Qd3+ {[%clk 0:00:20]}  Kh8 {[%clk 0:00:11]} 55. a4 {[%clk 0:00:20]}  Qc6+ {[%clk 0:00:11]} 56. Kb4 {[%clk 0:00:20]}  Qb6+ {[%clk 0:00:11]} 57. Qb5 {[%clk 0:00:20]}  Qd4+ {[%clk 0:00:11]} 58. Ka5 {[%clk 0:00:20]}  Qa7+ {[%clk 0:00:11]} 59. Qa6 {[%clk 0:00:18]}  Qc5+ {[%clk 0:00:11]} 60. Qb5 {[%clk 0:00:19]}  Qa7+ {[%clk 0:00:11]} 61. Kb4 {[%clk 0:00:19]}  Qd4+ {[%clk 0:00:12]} 62. Ka3 {[%clk 0:00:19]}  Qc3+ {[%clk 0:00:11]} 63. Qb3 {[%clk 0:00:20]}  Qa1+ {[%clk 0:00:10]} 64. Kb4 {[%clk 0:00:19]}  Qd4+ {[%clk 0:00:09]} 65. Qc4 {[%clk 0:00:19]}  Qb6+ {[%clk 0:00:09]} 66. Qb5 {[%clk 0:00:18]}  Qd4+ {[%clk 0:00:09]} 1/2-1/2

[Event "November 21 Early 2023"]
[Site "https://www.chess.com"]
[Date "2023.11.21"]
[Round "10"]
[White "Belov, Alexei"]
[Black "Minko, Dmitry"]
[Result "1/2-1/2"]
[Board "98"]
[TimeControl "180+1"]
[WhiteFideId "4128206"]
[BlackFideId "24188468"]
[WhiteElo "2603"]
[BlackElo "1992"]
[WhiteTeam "RUS"]
[BlackTeam "FID"]
[WhiteClock "0:00:57"]
[BlackClock "0:01:24"]

1. e4 {[%clk 0:02:51]}  e5 {[%clk 0:03:00]} 2. Nf3 {[%clk 0:02:51]}  Nc6 {[%clk 0:03:00]} 3. Bb5 {[%clk 0:02:51]}  Nf6 {[%clk 0:03:01]} 4. O-O {[%clk 0:02:50]}  Nxe4 {[%clk 0:03:01]} 5. d4 {[%clk 0:02:50]}  Nd6 {[%clk 0:03:01]} 6. Bxc6 {[%clk 0:02:50]}  dxc6 {[%clk 0:03:02]} 7. dxe5 {[%clk 0:02:50]}  Nf5 {[%clk 0:03:03]} 8. Qxd8+ {[%clk 0:02:50]}  Kxd8 {[%clk 0:03:04]} 9. Rd1+ {[%clk 0:02:50]}  Ke8 {[%clk 0:03:02]} 10. Nc3 {[%clk 0:02:51]}  Be7 {[%clk 0:03:02]} 11. b3 {[%clk 0:02:51]}  Be6 {[%clk 0:03:02]} 12. Bb2 {[%clk 0:02:50]}  Rd8 {[%clk 0:03:02]} 13. Ne2 {[%clk 0:02:50]}  h5 {[%clk 0:02:57]} 14. h3 {[%clk 0:02:50]}  Rxd1+ {[%clk 0:02:45]} 15. Rxd1 {[%clk 0:02:49]}  h4 {[%clk 0:02:46]} 16. Nf4 {[%clk 0:02:45]}  Bc8 {[%clk 0:02:35]} 17. c4 {[%clk 0:02:36]}  b5 {[%clk 0:02:24]} 18. Nd4 {[%clk 0:02:03]}  bxc4 {[%clk 0:02:00]} 19. bxc4 {[%clk 0:02:00]}  Nxd4 {[%clk 0:02:00]} 20. Bxd4 {[%clk 0:01:59]}  Ba6 {[%clk 0:02:01]} 21. Bxa7 {[%clk 0:01:48]}  Bxc4 {[%clk 0:02:00]} 22. Rd2 {[%clk 0:01:15]}  Bg5 {[%clk 0:01:56]} 23. Be3 {[%clk 0:01:13]}  Bxf4 {[%clk 0:01:37]} 24. Bxf4 {[%clk 0:01:13]}  Ke7 {[%clk 0:01:37]} 25. Rc2 {[%clk 0:01:05]}  Bd5 {[%clk 0:01:36]} 26. Rb2 {[%clk 0:01:04]}  Ra8 {[%clk 0:01:31]} 27. Bg5+ {[%clk 0:01:01]}  Ke6 {[%clk 0:01:31]} 28. Bxh4 {[%clk 0:01:00]}  Kxe5 {[%clk 0:01:28]} 29. Bg3+ {[%clk 0:01:00]}  Kf5 {[%clk 0:01:24]} 30. Bxc7 {[%clk 0:00:57]} 1/2-1/2

[Event "November 21 Early 2023"]
[Site "https://www.chess.com"]
[Date "2023.11.21"]
[Round "10"]
[White "Gavrilov, Maxim"]
[Black "Estrada Nieto, Julian"]
[Result "1-0"]
[Board "101"]
[TimeControl "180+1"]
[WhiteFideId "24271454"]
[BlackFideId "5101018"]
[WhiteElo "2157"]
[BlackElo "2161"]
[WhiteTeam "RUS"]
[BlackTeam "ESP"]
[WhiteClock "0:00:06"]
[BlackClock "0:00:00"]

1. d4 {[%clk 0:03:00]}  d5 {[%clk 0:02:59]} 2. c4 {[%clk 0:03:01]}  dxc4 {[%clk 0:03:00]} 3. e4 {[%clk 0:03:00]}  e5 {[%clk 0:02:59]} 4. Nf3 {[%clk 0:03:00]}  exd4 {[%clk 0:03:00]} 5. Bxc4 {[%clk 0:03:00]}  Nc6 {[%clk 0:03:00]} 6. O-O {[%clk 0:02:57]}  Be6 {[%clk 0:03:00]} 7. Bb5 {[%clk 0:02:57]}  Bc5 {[%clk 0:03:00]} 8. b4 {[%clk 0:02:56]}  Bb6 {[%clk 0:02:59]} 9. a4 {[%clk 0:02:56]}  a6 {[%clk 0:02:59]} 10. Bxc6+ {[%clk 0:02:55]}  bxc6 {[%clk 0:02:59]} 11. a5 {[%clk 0:02:56]}  Ba7 {[%clk 0:02:59]} 12. Bb2 {[%clk 0:02:54]}  Nf6 {[%clk 0:02:58]} 13. Nbd2 {[%clk 0:02:44]}  O-O {[%clk 0:02:56]} 14. Rc1 {[%clk 0:02:28]}  Rb8 {[%clk 0:02:55]} 15. Rxc6 {[%clk 0:02:26]}  Bc8 {[%clk 0:02:38]} 16. Rc4 {[%clk 0:02:09]}  c5 {[%clk 0:02:31]} 17. e5 {[%clk 0:01:50]}  Nd5 {[%clk 0:02:29]} 18. Ne4 {[%clk 0:01:50]}  Rxb4 {[%clk 0:02:25]} 19. Rxb4 {[%clk 0:01:49]}  Nxb4 {[%clk 0:02:23]} 20. Ba3 {[%clk 0:01:48]}  Qxa5 {[%clk 0:02:13]} 21. Bxb4 {[%clk 0:01:47]}  Qxb4 {[%clk 0:02:13]} 22. Qc2 {[%clk 0:01:45]}  Be6 {[%clk 0:01:45]} 23. Nfg5 {[%clk 0:01:32]}  g6 {[%clk 0:01:29]} 24. Nf6+ {[%clk 0:01:28]}  Kg7 {[%clk 0:01:30]} 25. Nfxh7 {[%clk 0:01:11]}  Bf5 {[%clk 0:01:24]} 26. Qc1 {[%clk 0:01:07]}  Rb8 {[%clk 0:01:14]} 27. Qf4 {[%clk 0:00:59]}  d3 {[%clk 0:01:12]} 28. Qg3 {[%clk 0:00:54]}  Qg4 {[%clk 0:01:08]} 29. Qe3 {[%clk 0:00:54]}  Rb7 {[%clk 0:00:50]} 30. e6 {[%clk 0:00:50]}  Qd4 {[%clk 0:00:38]} 31. Qg3 {[%clk 0:00:43]}  d2 {[%clk 0:00:20]} 32. exf7 {[%clk 0:00:37]}  Rxf7 {[%clk 0:00:17]} 33. Rd1 {[%clk 0:00:22]}  Re7 {[%clk 0:00:13]} 34. h4 {[%clk 0:00:18]}  Re1+ {[%clk 0:00:12]} 35. Kh2 {[%clk 0:00:19]}  Qe5 {[%clk 0:00:10]} 36. Qxe5+ {[%clk 0:00:17]}  Rxe5 {[%clk 0:00:10]} 37. Rxd2 {[%clk 0:00:18]}  Re7 {[%clk 0:00:10]} 38. Ra2 {[%clk 0:00:17]}  Bd3 {[%clk 0:00:08]} 39. Ra3 {[%clk 0:00:12]}  c4 {[%clk 0:00:08]} 40. g4 {[%clk 0:00:12]}  Bxf2 {[%clk 0:00:07]} 41. Rxa6 {[%clk 0:00:11]}  c3 {[%clk 0:00:06]} 42. Rc6 {[%clk 0:00:11]}  c2 {[%clk 0:00:06]} 43. Nf6 {[%clk 0:00:09]}  Bxh4 {[%clk 0:00:05]} 44. Ne6+ {[%clk 0:00:05]}  Kxf6 {[%clk 0:00:03]} 45. Nf4+ {[%clk 0:00:06]}  Kg5 {[%clk 0:00:03]} 46. Nxd3 {[%clk 0:00:06]}  Kxg4 {[%clk 0:00:03]} 47. Rxc2 {[%clk 0:00:06]}  Bg3+ {[%clk 0:00:00]} 48. Kg2 {[%clk 0:00:06]} 1-0

[Event "November 21 Early 2023"]
[Site "https://www.chess.com"]
[Date "2023.11.21"]
[Round "10"]
[White "Herman, Daniel"]
[Black "RodokininEV"]
[Result "1/2-1/2"]
[Board "102"]
[TimeControl "180+1"]
[WhiteFideId "30935008"]
[WhiteElo "1897"]
[BlackElo "2521"]
[WhiteTeam "USA"]
[WhiteClock "0:00:07"]
[BlackClock "0:00:08"]

1. d4 {[%clk 0:03:00]}  Nf6 {[%clk 0:02:56]} 2. c4 {[%clk 0:03:00]}  g6 {[%clk 0:02:56]} 3. Nc3 {[%clk 0:03:00]}  Bg7 {[%clk 0:02:56]} 4. e4 {[%clk 0:02:58]}  d6 {[%clk 0:02:57]} 5. Nf3 {[%clk 0:02:57]}  O-O {[%clk 0:02:56]} 6. h3 {[%clk 0:02:58]}  e5 {[%clk 0:02:53]} 7. d5 {[%clk 0:02:58]}  a5 {[%clk 0:02:52]} 8. Be3 {[%clk 0:02:55]}  Nfd7 {[%clk 0:02:49]} 9. g4 {[%clk 0:02:51]}  Na6 {[%clk 0:02:47]} 10. Bd3 {[%clk 0:02:44]}  Ndc5 {[%clk 0:02:44]} 11. Bc2 {[%clk 0:02:33]}  f5 {[%clk 0:02:45]} 12. gxf5 {[%clk 0:02:32]}  gxf5 {[%clk 0:02:45]} 13. Rg1 {[%clk 0:02:15]}  Kh8 {[%clk 0:02:44]} 14. Ng5 {[%clk 0:02:08]}  Qe8 {[%clk 0:02:31]} 15. exf5 {[%clk 0:01:48]}  Bxf5 {[%clk 0:02:28]} 16. Bxf5 {[%clk 0:01:44]}  Rxf5 {[%clk 0:02:28]} 17. Qg4 {[%clk 0:01:36]}  Qg6 {[%clk 0:02:20]} 18. O-O-O {[%clk 0:01:23]}  Raf8 {[%clk 0:02:16]} 19. Ne6 {[%clk 0:01:03]}  Nxe6 {[%clk 0:01:51]} 20. dxe6 {[%clk 0:01:00]}  Qxg4 {[%clk 0:01:51]} 21. hxg4 {[%clk 0:00:52]}  R5f6 {[%clk 0:01:51]} 22. e7 {[%clk 0:00:51]}  Re8 {[%clk 0:01:49]} 23. g5 {[%clk 0:00:30]}  Rg6 {[%clk 0:01:42]} 24. Ne4 {[%clk 0:00:24]}  Rxe7 {[%clk 0:01:40]} 25. b3 {[%clk 0:00:21]}  Nb8 {[%clk 0:01:36]} 26. c5 {[%clk 0:00:20]}  Rd7 {[%clk 0:01:21]} 27. cxd6 {[%clk 0:00:17]}  cxd6 {[%clk 0:01:22]} 28. Rd5 {[%clk 0:00:17]}  Nc6 {[%clk 0:01:20]} 29. Rgd1 {[%clk 0:00:17]}  Bf8 {[%clk 0:01:11]} 30. Bc5 {[%clk 0:00:16]}  Kg7 {[%clk 0:01:07]} 31. Bxd6 {[%clk 0:00:15]}  Bxd6 {[%clk 0:01:06]} 32. Rxd6 {[%clk 0:00:15]}  Rgxd6 {[%clk 0:01:01]} 33. Nxd6 {[%clk 0:00:15]}  Kg6 {[%clk 0:00:59]} 34. Ne4 {[%clk 0:00:13]}  Rxd1+ {[%clk 0:00:57]} 35. Kxd1 {[%clk 0:00:14]}  Nd4 {[%clk 0:00:48]} 36. Nc5 {[%clk 0:00:10]}  b5 {[%clk 0:00:44]} 37. Nb7 {[%clk 0:00:06]}  Kxg5 {[%clk 0:00:40]} 38. Nxa5 {[%clk 0:00:05]}  h5 {[%clk 0:00:40]} 39. Nb7 {[%clk 0:00:05]}  h4 {[%clk 0:00:38]} 40. Ke1 {[%clk 0:00:05]}  h3 {[%clk 0:00:38]} 41. Kf1 {[%clk 0:00:05]}  Kf4 {[%clk 0:00:38]} 42. Kg1 {[%clk 0:00:05]}  Kf3 {[%clk 0:00:35]} 43. Nd6 {[%clk 0:00:05]}  e4 {[%clk 0:00:32]} 44. a4 {[%clk 0:00:04]}  Nxb3 {[%clk 0:00:26]} 45. axb5 {[%clk 0:00:04]}  Nc1 {[%clk 0:00:16]} 46. b6 {[%clk 0:00:04]}  Ne2+ {[%clk 0:00:17]} 47. Kh2 {[%clk 0:00:04]}  Nd4 {[%clk 0:00:12]} 48. b7 {[%clk 0:00:05]}  Nc6 {[%clk 0:00:12]} 49. Kxh3 {[%clk 0:00:05]}  Kxf2 {[%clk 0:00:12]} 50. Nxe4+ {[%clk 0:00:05]}  Ke3 {[%clk 0:00:12]} 51. Ng5 {[%clk 0:00:05]}  Kd4 {[%clk 0:00:12]} 52. Ne6+ {[%clk 0:00:06]}  Kd5 {[%clk 0:00:08]} 53. Nd8 {[%clk 0:00:06]}  Nb8 {[%clk 0:00:08]} 54. Kg4 {[%clk 0:00:07]}  Kd6 {[%clk 0:00:08]} 55. Kf5 {[%clk 0:00:07]}  Kc7 {[%clk 0:00:08]} 56. Ne6+ {[%clk 0:00:07]}  Kxb7 {[%clk 0:00:08]} 1/2-1/2

[Event "November 21 Early 2023"]
[Site "https://www.chess.com"]
[Date "2023.11.21"]
[Round "10"]
[White "Tarasova, Viktoriya"]
[Black "Kovalyov_Eduard"]
[Result "0-1"]
[Board "106"]
[TimeControl "180+1"]
[WhiteFideId "4175840"]
[WhiteElo "2182"]
[BlackElo "2499"]
[WhiteTeam "RUS"]
[WhiteClock "0:00:00"]
[BlackClock "0:00:24"]

1. d4 {[%clk 0:03:00]}  Nf6 {[%clk 0:02:59]} 2. c4 {[%clk 0:03:00]}  g6 {[%clk 0:03:00]} 3. Nc3 {[%clk 0:03:00]}  Bg7 {[%clk 0:03:01]} 4. e4 {[%clk 0:03:01]}  O-O {[%clk 0:03:02]} 5. h3 {[%clk 0:03:01]}  d6 {[%clk 0:03:02]} 6. Be3 {[%clk 0:03:01]}  Nc6 {[%clk 0:03:02]} 7. d5 {[%clk 0:03:01]}  Ne5 {[%clk 0:03:01]} 8. f4 {[%clk 0:03:00]}  Ned7 {[%clk 0:03:01]} 9. Be2 {[%clk 0:02:59]}  c6 {[%clk 0:03:01]} 10. Nf3 {[%clk 0:02:59]}  cxd5 {[%clk 0:03:00]} 11. cxd5 {[%clk 0:02:59]}  b6 {[%clk 0:02:59]} 12. O-O {[%clk 0:02:59]}  Nc5 {[%clk 0:02:59]} 13. Qc2 {[%clk 0:02:53]}  Ba6 {[%clk 0:02:56]} 14. Bxa6 {[%clk 0:02:50]}  Nxa6 {[%clk 0:02:56]} 15. Nd4 {[%clk 0:02:51]}  Qd7 {[%clk 0:02:51]} 16. Bf2 {[%clk 0:02:13]}  Rfc8 {[%clk 0:02:49]} 17. Qe2 {[%clk 0:02:11]}  Nb8 {[%clk 0:02:39]} 18. Rfd1 {[%clk 0:02:01]}  Qb7 {[%clk 0:02:37]} 19. Rac1 {[%clk 0:01:51]}  a6 {[%clk 0:02:36]} 20. Nf3 {[%clk 0:01:39]}  Nfd7 {[%clk 0:02:30]} 21. e5 {[%clk 0:01:38]}  Nf8 {[%clk 0:02:28]} 22. Bd4 {[%clk 0:01:21]}  Nbd7 {[%clk 0:02:25]} 23. g4 {[%clk 0:00:29]}  b5 {[%clk 0:02:21]} 24. a3 {[%clk 0:00:25]}  Nc5 {[%clk 0:02:21]} 25. exd6 {[%clk 0:00:11]}  exd6 {[%clk 0:02:20]} 26. Bxg7 {[%clk 0:00:10]}  Kxg7 {[%clk 0:02:21]} 27. Nd4 {[%clk 0:00:11]}  Re8 {[%clk 0:02:20]} 28. Qf3 {[%clk 0:00:11]}  b4 {[%clk 0:02:07]} 29. axb4 {[%clk 0:00:08]}  Qxb4 {[%clk 0:02:08]} 30. Rd2 {[%clk 0:00:05]}  Nb3 {[%clk 0:01:56]} 31. Nxb3 {[%clk 0:00:05]}  Qxb3 {[%clk 0:01:57]} 32. f5 {[%clk 0:00:05]}  Nd7 {[%clk 0:01:54]} 33. Rf1 {[%clk 0:00:05]}  f6 {[%clk 0:01:53]} 34. fxg6 {[%clk 0:00:05]}  hxg6 {[%clk 0:01:53]} 35. Qf4 {[%clk 0:00:05]}  Re5 {[%clk 0:01:47]} 36. Ne4 {[%clk 0:00:06]}  Rf8 {[%clk 0:01:21]} 37. Rh2 {[%clk 0:00:03]}  Qxd5 {[%clk 0:01:08]} 38. Ng3 {[%clk 0:00:03]}  Nc5 {[%clk 0:00:49]} 39. h4 {[%clk 0:00:02]}  Ne6 {[%clk 0:00:49]} 40. Qf2 {[%clk 0:00:02]}  Qc4 {[%clk 0:00:28]} 41. h5 {[%clk 0:00:02]}  Qxg4 {[%clk 0:00:28]} 42. h6+ {[%clk 0:00:02]}  Kh7 {[%clk 0:00:27]} 43. Rg2 {[%clk 0:00:02]}  Qd4 {[%clk 0:00:25]} 44. Ne2 {[%clk 0:00:02]}  Rxe2 {[%clk 0:00:22]} 45. Qxd4 {[%clk 0:00:01]}  Rxg2+ {[%clk 0:00:23]} 46. Kxg2 {[%clk 0:00:00]}  Nxd4 {[%clk 0:00:24]} 0-1

[Event "November 21 Early 2023"]
[Site "https://www.chess.com"]
[Date "2023.11.21"]
[Round "10"]
[White "Kochiev, Ivan"]
[Black "Hoffmann, Asa"]
[Result "1-0"]
[Board "111"]
[TimeControl "180+1"]
[WhiteFideId "2917890"]
[BlackFideId "2001470"]
[WhiteElo "2285"]
[BlackElo "2117"]
[WhiteTeam "BUL"]
[BlackTeam "USA"]
[WhiteClock "0:00:09"]
[BlackClock "0:00:00"]

1. e4 {[%clk 0:03:00]}  d6 {[%clk 0:02:55]} 2. d4 {[%clk 0:03:00]}  Nf6 {[%clk 0:02:54]} 3. Bd3 {[%clk 0:02:59]}  e5 {[%clk 0:02:54]} 4. c3 {[%clk 0:02:59]}  Nc6 {[%clk 0:02:52]} 5. Nf3 {[%clk 0:02:53]}  Bg4 {[%clk 0:02:50]} 6. Be3 {[%clk 0:02:46]}  Be7 {[%clk 0:02:37]} 7. h3 {[%clk 0:02:43]}  Bh5 {[%clk 0:02:37]} 8. Nbd2 {[%clk 0:02:41]}  O-O {[%clk 0:02:36]} 9. O-O {[%clk 0:02:41]}  d5 {[%clk 0:02:32]} 10. exd5 {[%clk 0:02:37]}  Nxd5 {[%clk 0:02:29]} 11. Qc2 {[%clk 0:02:29]}  exd4 {[%clk 0:02:26]} 12. Bxd4 {[%clk 0:02:24]}  Bg6 {[%clk 0:02:14]} 13. Bxg6 {[%clk 0:02:22]}  hxg6 {[%clk 0:02:13]} 14. Rad1 {[%clk 0:02:22]}  Nxd4 {[%clk 0:02:13]} 15. Nxd4 {[%clk 0:02:22]}  Bf6 {[%clk 0:02:10]} 16. N2f3 {[%clk 0:02:21]}  Qd7 {[%clk 0:01:58]} 17. Rfe1 {[%clk 0:02:18]}  Rad8 {[%clk 0:01:57]} 18. c4 {[%clk 0:02:06]}  Nb4 {[%clk 0:01:52]} 19. Qb3 {[%clk 0:02:04]}  c5 {[%clk 0:01:48]} 20. Ne6 {[%clk 0:01:59]}  Qxe6 {[%clk 0:01:25]} 21. Rxe6 {[%clk 0:01:52]}  Rxd1+ {[%clk 0:01:16]} 22. Qxd1 {[%clk 0:01:50]}  fxe6 {[%clk 0:01:16]} 23. Qd6 {[%clk 0:01:40]}  Re8 {[%clk 0:00:58]} 24. Qxc5 {[%clk 0:01:35]}  Nd3 {[%clk 0:00:55]} 25. Qb5 {[%clk 0:01:32]}  Re7 {[%clk 0:00:49]} 26. b3 {[%clk 0:01:17]}  b6 {[%clk 0:00:49]} 27. Kf1 {[%clk 0:01:10]}  Nc5 {[%clk 0:00:47]} 28. b4 {[%clk 0:01:01]}  Ne4 {[%clk 0:00:45]} 29. Qc6 {[%clk 0:01:00]}  Nc3 {[%clk 0:00:42]} 30. g4 {[%clk 0:00:50]}  g5 {[%clk 0:00:42]} 31. h4 {[%clk 0:00:49]}  g6 {[%clk 0:00:22]} 32. hxg5 {[%clk 0:00:44]}  Bg7 {[%clk 0:00:22]} 33. Nh4 {[%clk 0:00:44]}  Kf7 {[%clk 0:00:21]} 34. Qf3+ {[%clk 0:00:43]}  Ke8 {[%clk 0:00:20]} 35. Nxg6 {[%clk 0:00:40]}  Rd7 {[%clk 0:00:19]} 36. Qa8+ {[%clk 0:00:22]}  Kf7 {[%clk 0:00:18]} 37. Nf4 {[%clk 0:00:20]}  e5 {[%clk 0:00:16]} 38. Nh5 {[%clk 0:00:16]}  Bf8 {[%clk 0:00:14]} 39. Qf3+ {[%clk 0:00:16]}  Ke7 {[%clk 0:00:13]} 40. Qxc3 {[%clk 0:00:17]}  Rd4 {[%clk 0:00:11]} 41. Ng3 {[%clk 0:00:15]}  Ke6 {[%clk 0:00:11]} 42. c5 {[%clk 0:00:10]}  b5 {[%clk 0:00:10]} 43. Qb3+ {[%clk 0:00:09]}  Kd7 {[%clk 0:00:10]} 44. a3 {[%clk 0:00:09]}  Rxg4 {[%clk 0:00:09]} 45. Qf7+ {[%clk 0:00:08]}  Be7 {[%clk 0:00:09]} 46. Qf5+ {[%clk 0:00:08]}  Kc6 {[%clk 0:00:00]} 47. Qxg4 {[%clk 0:00:09]} 1-0

[Event "November 21 Early 2023"]
[Site "https://www.chess.com"]
[Date "2023.11.21"]
[Round "10"]
[White "Rian, Kapriaga"]
[Black "Kanyamarala, Trisha"]
[Result "0-1"]
[Board "112"]
[TimeControl "180+1"]
[WhiteFideId "7103263"]
[BlackFideId "45004722"]
[WhiteElo "2326"]
[BlackElo "2078"]
[WhiteTeam "INA"]
[BlackTeam "IRL"]
[WhiteClock "0:00:00"]
[BlackClock "0:01:03"]

1. d4 {[%clk 0:02:06]}  Nf6 {[%clk 0:02:58]} 2. Nf3 {[%clk 0:02:05]}  d5 {[%clk 0:02:57]} 3. Bf4 {[%clk 0:02:04]}  e6 {[%clk 0:02:56]} 4. e3 {[%clk 0:02:03]}  c5 {[%clk 0:02:56]} 5. Nbd2 {[%clk 0:02:00]}  Nc6 {[%clk 0:02:56]} 6. c3 {[%clk 0:01:58]}  Bd6 {[%clk 0:02:53]} 7. Bg3 {[%clk 0:01:56]}  O-O {[%clk 0:02:52]} 8. Bd3 {[%clk 0:01:54]}  Qe7 {[%clk 0:02:52]} 9. Ne5 {[%clk 0:01:53]}  Bxe5 {[%clk 0:02:51]} 10. dxe5 {[%clk 0:01:51]}  Nd7 {[%clk 0:02:51]} 11. f4 {[%clk 0:01:51]}  f6 {[%clk 0:02:52]} 12. Bh4 {[%clk 0:01:48]}  Qf7 {[%clk 0:02:46]} 13. exf6 {[%clk 0:01:47]}  Nxf6 {[%clk 0:02:45]} 14. O-O {[%clk 0:01:45]}  Qc7 {[%clk 0:02:28]} 15. Bxf6 {[%clk 0:01:41]}  Rxf6 {[%clk 0:02:27]} 16. Nf3 {[%clk 0:01:37]}  Bd7 {[%clk 0:02:25]} 17. Ng5 {[%clk 0:01:35]}  g6 {[%clk 0:02:16]} 18. Qg4 {[%clk 0:01:28]}  Raf8 {[%clk 0:02:07]} 19. Qh4 {[%clk 0:01:25]}  Bc8 {[%clk 0:02:06]} 20. Rf3 {[%clk 0:01:17]}  e5 {[%clk 0:02:05]} 21. Rh3 {[%clk 0:01:02]}  Bxh3 {[%clk 0:02:01]} 22. Nxh3 {[%clk 0:01:00]}  e4 {[%clk 0:01:53]} 23. Bc2 {[%clk 0:00:57]}  Ne7 {[%clk 0:01:49]} 24. Rd1 {[%clk 0:00:53]}  Nf5 {[%clk 0:01:48]} 25. Qf2 {[%clk 0:00:54]}  d4 {[%clk 0:01:48]} 26. cxd4 {[%clk 0:00:50]}  cxd4 {[%clk 0:01:48]} 27. exd4 {[%clk 0:00:29]}  e3 {[%clk 0:01:48]} 28. Qe2 {[%clk 0:00:27]}  Re8 {[%clk 0:01:44]} 29. g3 {[%clk 0:00:21]}  Qd6 {[%clk 0:01:40]} 30. Bxf5 {[%clk 0:00:15]}  Rxf5 {[%clk 0:01:39]} 31. Ng5 {[%clk 0:00:14]}  Rd5 {[%clk 0:01:36]} 32. Qc4 {[%clk 0:00:13]}  Kg7 {[%clk 0:01:35]} 33. Re1 {[%clk 0:00:08]}  Re7 {[%clk 0:01:24]} 34. Nf3 {[%clk 0:00:06]}  Qc6 {[%clk 0:01:15]} 35. Qc3 {[%clk 0:00:05]}  e2 {[%clk 0:01:11]} 36. Ne5 {[%clk 0:00:03]}  Qb6 {[%clk 0:01:05]} 37. Rxe2 {[%clk 0:00:01]}  Qxd4+ {[%clk 0:01:02]} 38. Qxd4 {[%clk 0:00:00]}  Rxd4 {[%clk 0:01:03]} 0-1

[Event "November 21 Early 2023"]
[Site "https://www.chess.com"]
[Date "2023.11.21"]
[Round "10"]
[White "Ramla2020"]
[Black "AndresDelgado77"]
[Result "1-0"]
[Board "115"]
[TimeControl "180+1"]
[WhiteElo "2460"]
[BlackElo "2312"]
[WhiteClock "0:01:40"]
[BlackClock "0:00:00"]

1. c4 {[%clk 0:03:00]}  g6 {[%clk 0:02:57]} 2. g3 {[%clk 0:02:58]}  c5 {[%clk 0:02:56]} 3. Bg2 {[%clk 0:02:58]}  Nc6 {[%clk 0:02:48]} 4. Nc3 {[%clk 0:02:57]}  Bg7 {[%clk 0:02:44]} 5. e3 {[%clk 0:02:57]}  e6 {[%clk 0:02:38]} 6. Nge2 {[%clk 0:02:56]}  Nge7 {[%clk 0:02:35]} 7. d4 {[%clk 0:02:56]}  cxd4 {[%clk 0:02:33]} 8. exd4 {[%clk 0:02:57]}  d5 {[%clk 0:02:33]} 9. cxd5 {[%clk 0:02:57]}  Nxd5 {[%clk 0:02:31]} 10. Nxd5 {[%clk 0:02:55]}  exd5 {[%clk 0:02:31]} 11. O-O {[%clk 0:02:56]}  O-O {[%clk 0:02:30]} 12. Be3 {[%clk 0:02:55]}  Qb6 {[%clk 0:02:22]} 13. Nf4 {[%clk 0:02:53]}  Be6 {[%clk 0:02:09]} 14. Nxd5 {[%clk 0:02:37]}  Bxd5 {[%clk 0:02:06]} 15. Bxd5 {[%clk 0:02:37]}  Bxd4 {[%clk 0:01:59]} 16. Bh6 {[%clk 0:02:33]}  Rfd8 {[%clk 0:01:45]} 17. Qf3 {[%clk 0:02:22]}  Ne5 {[%clk 0:01:11]} 18. Qe4 {[%clk 0:02:16]}  Qf6 {[%clk 0:01:07]} 19. Bxb7 {[%clk 0:01:58]}  Rab8 {[%clk 0:01:02]} 20. Bf4 {[%clk 0:01:58]}  Bxb2 {[%clk 0:00:44]} 21. Rab1 {[%clk 0:01:52]}  Rd4 {[%clk 0:00:40]} 22. Qxe5 {[%clk 0:01:46]}  Rxf4 {[%clk 0:00:37]} 23. Qxb8+ {[%clk 0:01:41]}  Kg7 {[%clk 0:00:00]} 24. Qxf4 {[%clk 0:01:40]} 1-0